[Event "*** Titled Tuesday Blitz"]
[Site "Chess.com"]
[Date "2021.04.06"]
[Round "1"]
[White "Eliwood44"]
[Black "MarcoCorvi"]
[Result "1-0"]
[WhiteElo "2507"]
[BlackElo "2112"]
[TimeControl "180+1"]
[EndTime "10:07:32 PDT"]
[Termination "Eliwood44 won by resignation"]

1. d4 {[%clk 0:02:53.4]} 1... Nf6 {[%clk 0:02:58.7]} 2. Nf3 {[%clk 0:02:52.9]}
2... g6 {[%clk 0:02:59]} 3. c4 {[%clk 0:02:49.5]} 3... Bg7 {[%clk 0:02:59.3]} 4.
Nc3 {[%clk 0:02:46.6]} 4... O-O {[%clk 0:02:59.3]} 5. Bg5 {[%clk 0:02:47.1]}
5... d6 {[%clk 0:02:57]} 6. e3 {[%clk 0:02:46.9]} 6... c5 {[%clk 0:02:54.2]} 7.
dxc5 {[%clk 0:02:45.8]} 7... dxc5 {[%clk 0:02:52.8]} 8. Qxd8 {[%clk 0:02:44.9]}
8... Rxd8 {[%clk 0:02:53.7]} 9. Be2 {[%clk 0:02:44.1]} 9... Nc6 {[%clk
0:02:41.6]} 10. O-O {[%clk 0:02:41.9]} 10... Be6 {[%clk 0:02:36.1]} 11. Rad1
{[%clk 0:02:38]} 11... h6 {[%clk 0:02:32]} 12. Bh4 {[%clk 0:02:34.5]} 12... Kf8
{[%clk 0:02:17.2]} 13. Bg3 {[%clk 0:01:56.1]} 13... Rxd1 {[%clk 0:01:37.4]} 14.
Rxd1 {[%clk 0:01:54.7]} 14... Rd8 {[%clk 0:01:37.9]} 15. Ne5 {[%clk 0:01:48]}
15... Rxd1+ {[%clk 0:01:36.3]} 16. Nxd1 {[%clk 0:01:45]} 16... Nxe5 {[%clk
0:01:31.2]} 17. Bxe5 {[%clk 0:01:45.9]} 17... Nd7 {[%clk 0:01:31.4]} 18. Bxg7+
{[%clk 0:01:43.4]} 18... Kxg7 {[%clk 0:01:32.3]} 19. f4 {[%clk 0:01:41.1]} 19...
f6 {[%clk 0:01:16.6]} 20. b3 {[%clk 0:01:38]} 20... g5 {[%clk 0:01:16.6]} 21.
Nc3 {[%clk 0:01:32.3]} 21... a6 {[%clk 0:01:07.6]} 22. Bf3 {[%clk 0:01:29.2]}
22... b6 {[%clk 0:01:01.2]} 23. Bb7 {[%clk 0:01:13.7]} 23... a5 {[%clk 0:01:00]}
24. Bc6 {[%clk 0:01:13.5]} 24... Nb8 {[%clk 0:00:50.5]} 25. Bd5 {[%clk
0:01:09.7]} 25... Kf7 {[%clk 0:00:45.6]} 26. Kf2 {[%clk 0:01:09.3]} 26... Bxd5
{[%clk 0:00:44.4]} 27. Nxd5 {[%clk 0:01:09.3]} 27... Nd7 {[%clk 0:00:44.6]} 28.
g3 {[%clk 0:01:06]} 28... e6 {[%clk 0:00:43.2]} 29. Nc3 {[%clk 0:01:05.4]} 29...
Ke7 {[%clk 0:00:41.6]} 30. Kf3 {[%clk 0:01:03.2]} 30... Kd6 {[%clk 0:00:36.5]}
31. Kg4 {[%clk 0:00:56.3]} 31... f5+ {[%clk 0:00:13.6]} 32. Kh5 {[%clk
0:00:53.2]} 32... gxf4 {[%clk 0:00:13.7]} 33. exf4 {[%clk 0:00:52]} 33... Nf6+
{[%clk 0:00:14.2]} 34. Kxh6 {[%clk 0:00:51.8]} 34... Ng4+ {[%clk 0:00:14.8]} 35.
Kg6 {[%clk 0:00:45.2]} 35... Nxh2 {[%clk 0:00:15.7]} 36. Kf7 {[%clk 0:00:43.9]}
36... Nf1 {[%clk 0:00:15.3]} 37. Ne2 {[%clk 0:00:41.5]} 37... e5 {[%clk
0:00:14.5]} 38. Kf6 {[%clk 0:00:40.5]} 38... Nxg3 {[%clk 0:00:06.9]} 39. Nxg3
{[%clk 0:00:39.2]} 39... exf4 {[%clk 0:00:07.8]} 40. Nxf5+ {[%clk 0:00:35.1]}
40... Kc6 {[%clk 0:00:08.1]} 41. Nh4 {[%clk 0:00:33.6]} 41... b5 {[%clk
0:00:07.7]} 42. Ke5 {[%clk 0:00:32.6]} 42... a4 {[%clk 0:00:07.5]} 43. Kxf4
{[%clk 0:00:27.9]} 43... axb3 {[%clk 0:00:07.8]} 44. axb3 {[%clk 0:00:27.9]}
44... bxc4 {[%clk 0:00:08.2]} 45. bxc4 {[%clk 0:00:28.1]} 45... Kb6 {[%clk
0:00:08.6]} 46. Ke4 {[%clk 0:00:28.3]} 46... Kc6 {[%clk 0:00:08.6]} 47. Nf3
{[%clk 0:00:27.8]} 47... Kd6 {[%clk 0:00:08.7]} 48. Nd2 {[%clk 0:00:27.4]} 48...
Kc6 {[%clk 0:00:08.9]} 49. Ke5 {[%clk 0:00:27.7]} 49... Kb6 {[%clk 0:00:08.9]}
50. Kd5 {[%clk 0:00:27.9]} 1-0

[Event "*** Titled Tuesday Blitz"]
[Site "Chess.com"]
[Date "2021.04.06"]
[Round "1"]
[White "exoticprincess"]
[Black "english_player_89"]
[Result "1/2-1/2"]
[WhiteElo "2926"]
[BlackElo "2471"]
[TimeControl "180+1"]
[EndTime "10:07:36 PDT"]
[Termination "Game drawn by repetition"]

1. e4 {[%clk 0:03:00.9]} 1... e5 {[%clk 0:03:00.3]} 2. Nf3 {[%clk 0:02:59.9]}
2... Nc6 {[%clk 0:03:01]} 3. Bc4 {[%clk 0:03:00.2]} 3... a6 {[%clk 0:03:01.6]}
4. O-O {[%clk 0:02:58.7]} 4... Be7 {[%clk 0:03:01.5]} 5. d4 {[%clk 0:02:57.9]}
5... exd4 {[%clk 0:03:01.6]} 6. Nxd4 {[%clk 0:02:58.8]} 6... Nf6 {[%clk
0:02:56.7]} 7. Nxc6 {[%clk 0:02:56.5]} 7... dxc6 {[%clk 0:02:56.8]} 8. Qxd8+
{[%clk 0:02:55.9]} 8... Bxd8 {[%clk 0:02:55.9]} 9. f3 {[%clk 0:02:53.9]} 9...
O-O {[%clk 0:02:51.5]} 10. Be3 {[%clk 0:02:53.7]} 10... Be7 {[%clk 0:02:51.4]}
11. Rd1 {[%clk 0:02:52.6]} 11... Nd7 {[%clk 0:02:43.8]} 12. Nc3 {[%clk
0:02:48.2]} 12... Nc5 {[%clk 0:02:41.6]} 13. Kf2 {[%clk 0:02:39.5]} 13... Be6
{[%clk 0:02:41.3]} 14. Bxe6 {[%clk 0:02:38.7]} 14... Nxe6 {[%clk 0:02:42.2]} 15.
Rd2 {[%clk 0:02:32.8]} 15... Rfd8 {[%clk 0:02:41.8]} 16. Rad1 {[%clk 0:02:32.9]}
16... Rxd2+ {[%clk 0:02:41.1]} 17. Rxd2 {[%clk 0:02:33.8]} 17... Rd8 {[%clk
0:02:40.8]} 18. Rxd8+ {[%clk 0:02:33.7]} 18... Bxd8 {[%clk 0:02:40.6]} 19. f4
{[%clk 0:02:34.6]} 19... Be7 {[%clk 0:02:16]} 20. Kf3 {[%clk 0:02:33.3]} 20...
f6 {[%clk 0:02:06.1]} 21. Ne2 {[%clk 0:02:27.2]} 21... Kf7 {[%clk 0:02:04]} 22.
g4 {[%clk 0:02:18.6]} 22... g6 {[%clk 0:01:56.3]} 23. h4 {[%clk 0:02:12.9]}
23... Bd6 {[%clk 0:01:54.3]} 24. b3 {[%clk 0:02:09.5]} 24... Ng7 {[%clk
0:01:45.9]} 25. Ng3 {[%clk 0:02:05.2]} 25... h5 {[%clk 0:01:40.1]} 26. gxh5
{[%clk 0:01:59.9]} 26... Nxh5 {[%clk 0:01:28.7]} 27. Nxh5 {[%clk 0:01:59.8]}
27... gxh5 {[%clk 0:01:29.6]} 28. f5 {[%clk 0:01:58.1]} 28... Be5 {[%clk
0:01:27.6]} 29. Bf4 {[%clk 0:01:56.3]} 29... c5 {[%clk 0:01:15.4]} 30. Be3
{[%clk 0:01:14.9]} 30... b6 {[%clk 0:01:14.8]} 31. Bf4 {[%clk 0:01:09.3]} 31...
Ke7 {[%clk 0:01:10.9]} 32. a4 {[%clk 0:01:01.3]} 32... Kd6 {[%clk 0:01:04.4]}
33. Ke3 {[%clk 0:00:55.8]} 33... b5 {[%clk 0:00:58.7]} 34. c4 {[%clk 0:00:44.3]}
34... b4 {[%clk 0:00:48.3]} 35. Kf3 {[%clk 0:00:43.5]} 35... Ke7 {[%clk
0:00:42.4]} 36. Be3 {[%clk 0:00:43.6]} 36... Kd6 {[%clk 0:00:41.5]} 37. Bf2
{[%clk 0:00:42.6]} 37... Kc6 {[%clk 0:00:39.6]} 38. Bg1 {[%clk 0:00:42.6]} 38...
Kd6 {[%clk 0:00:39.8]} 39. Be3 {[%clk 0:00:43.3]} 39... Kc6 {[%clk 0:00:38.5]}
40. Bh6 {[%clk 0:00:43.7]} 40... Kd6 {[%clk 0:00:34.6]} 41. Bf8+ {[%clk
0:00:43.6]} 41... Kc6 {[%clk 0:00:35]} 42. Be7 {[%clk 0:00:44.5]} 42... Kb6
{[%clk 0:00:34.5]} 43. Bf8 {[%clk 0:00:40.4]} 43... a5 {[%clk 0:00:33.8]} 44.
Be7 {[%clk 0:00:32.4]} 44... Kc6 {[%clk 0:00:33.9]} 45. Ke3 {[%clk 0:00:32.6]}
45... Kb6 {[%clk 0:00:33.1]} 46. Bf8 {[%clk 0:00:23.3]} 46... Kc6 {[%clk
0:00:33.3]} 47. Kf3 {[%clk 0:00:23.1]} 47... Kb6 {[%clk 0:00:30.2]} 48. Bh6
{[%clk 0:00:23.3]} 48... Kc6 {[%clk 0:00:30.2]} 49. Bf4 {[%clk 0:00:23.4]} 49...
Kd6 {[%clk 0:00:30.1]} 50. Ke3 {[%clk 0:00:18.9]} 50... Ke7 {[%clk 0:00:27.7]}
51. Bxe5 {[%clk 0:00:14.1]} 51... fxe5 {[%clk 0:00:27.6]} 52. Kf3 {[%clk
0:00:14.1]} 52... Kf6 {[%clk 0:00:27.5]} 53. Ke3 {[%clk 0:00:15]} 53... Kf7
{[%clk 0:00:28]} 54. Kf3 {[%clk 0:00:15.9]} 54... Kf6 {[%clk 0:00:28.6]} 55. Ke3
{[%clk 0:00:16.8]} 55... Kf7 {[%clk 0:00:29.2]} 56. Kf3 {[%clk 0:00:17.7]} 56...
Kf6 {[%clk 0:00:29.8]} 1/2-1/2

[Event "*** Titled Tuesday Blitz"]
[Site "Chess.com"]
[Date "2021.04.06"]
[Round "1"]
[White "Magila31"]
[Black "Chernobay_Artem"]
[Result "0-1"]
[WhiteElo "2317"]
[BlackElo "2613"]
[TimeControl "180+1"]
[EndTime "10:07:36 PDT"]
[Termination "Chernobay_Artem won on time"]

1. Nf3 {[%clk 0:02:58.4]} 1... Nf6 {[%clk 0:02:57.4]} 2. c4 {[%clk 0:02:56.5]}
2... g6 {[%clk 0:02:57]} 3. Nc3 {[%clk 0:02:55.7]} 3... Bg7 {[%clk 0:02:56.4]}
4. e4 {[%clk 0:02:51.6]} 4... d6 {[%clk 0:02:55.6]} 5. d4 {[%clk 0:02:50.6]}
5... O-O {[%clk 0:02:55.8]} 6. h3 {[%clk 0:02:47.3]} 6... e5 {[%clk 0:02:55.8]}
7. d5 {[%clk 0:02:46.7]} 7... a5 {[%clk 0:02:55.4]} 8. Be3 {[%clk 0:02:39.8]}
8... Na6 {[%clk 0:02:50.4]} 9. Nd2 {[%clk 0:02:31.5]} 9... Nc5 {[%clk
0:02:14.5]} 10. Qc2 {[%clk 0:02:24.7]} 10... Bd7 {[%clk 0:02:12.6]} 11. Be2
{[%clk 0:02:21.7]} 11... c6 {[%clk 0:02:10.5]} 12. Nb3 {[%clk 0:02:09.4]} 12...
Na6 {[%clk 0:01:50.9]} 13. O-O {[%clk 0:01:49.1]} 13... cxd5 {[%clk 0:01:45.7]}
14. cxd5 {[%clk 0:01:46.3]} 14... Rc8 {[%clk 0:01:43.2]} 15. Qd1 {[%clk
0:00:55.2]} 15... a4 {[%clk 0:01:26.3]} 16. Nd2 {[%clk 0:00:54.3]} 16... a3
{[%clk 0:01:26.6]} 17. Qb3 {[%clk 0:00:44.1]} 17... axb2 {[%clk 0:00:51.7]} 18.
Qxb2 {[%clk 0:00:43.7]} 18... Qa5 {[%clk 0:00:48.8]} 19. Rfc1 {[%clk 0:00:38.2]}
19... Nc5 {[%clk 0:00:40.9]} 20. Nc4 {[%clk 0:00:35.4]} 20... Qc7 {[%clk
0:00:33.8]} 21. Nb6 {[%clk 0:00:34.3]} 21... Rb8 {[%clk 0:00:29.5]} 22. Bxc5
{[%clk 0:00:18.4]} 22... Qxc5 {[%clk 0:00:27.7]} 23. Nxd7 {[%clk 0:00:17.5]}
23... Nxd7 {[%clk 0:00:28.2]} 24. Nb5 {[%clk 0:00:15.5]} 24... Qb6 {[%clk
0:00:28.3]} 25. a4 {[%clk 0:00:14.8]} 25... Nc5 {[%clk 0:00:25.3]} 26. a5 {[%clk
0:00:13.8]} 26... Qd8 {[%clk 0:00:25.6]} 27. Qb4 {[%clk 0:00:11.7]} 27... Rc8
{[%clk 0:00:21.7]} 28. Rc2 {[%clk 0:00:09.9]} 28... f5 {[%clk 0:00:21.2]} 29.
Rac1 {[%clk 0:00:07.7]} 29... fxe4 {[%clk 0:00:08.4]} 30. Nxd6 {[%clk
0:00:07.8]} 30... Qxd6 {[%clk 0:00:08.1]} 31. Rxc5 {[%clk 0:00:07.9]} 31... Rxc5
{[%clk 0:00:08.1]} 32. Qxc5 {[%clk 0:00:08]} 32... Qf6 {[%clk 0:00:08.9]} 33. d6
{[%clk 0:00:06.8]} 33... Bh6 {[%clk 0:00:08.8]} 34. Rd1 {[%clk 0:00:06.4]} 34...
e3 {[%clk 0:00:09]} 35. f3 {[%clk 0:00:05.3]} 35... Bf4 {[%clk 0:00:09.3]} 36.
Bc4+ {[%clk 0:00:05]} 36... Kh8 {[%clk 0:00:08.6]} 37. d7 {[%clk 0:00:04.9]}
37... Rd8 {[%clk 0:00:08.9]} 38. Qd6 {[%clk 0:00:03.2]} 38... Qh4 {[%clk
0:00:08.8]} 39. Qc7 {[%clk 0:00:01.4]} 39... Kg7 {[%clk 0:00:07.8]} 0-1

[Event "*** Titled Tuesday Blitz"]
[Site "Chess.com"]
[Date "2021.04.06"]
[Round "1"]
[White "Manukyan_Artak"]
[Black "EvgenyT"]
[Result "0-1"]
[WhiteElo "2463"]
[BlackElo "2934"]
[TimeControl "180+1"]
[EndTime "10:07:38 PDT"]
[Termination "EvgenyT won by checkmate"]

1. e4 {[%clk 0:03:00.9]} 1... c6 {[%clk 0:02:58.4]} 2. d4 {[%clk 0:03:00.6]}
2... d5 {[%clk 0:02:58.8]} 3. e5 {[%clk 0:03:01.3]} 3... Bf5 {[%clk 0:02:58.2]}
4. c4 {[%clk 0:03:01.6]} 4... e6 {[%clk 0:02:57.4]} 5. Nc3 {[%clk 0:03:01.8]}
5... Nd7 {[%clk 0:02:56]} 6. Nf3 {[%clk 0:03:02]} 6... Ne7 {[%clk 0:02:54]} 7.
Nh4 {[%clk 0:03:02.1]} 7... Bg6 {[%clk 0:02:52.6]} 8. Bg5 {[%clk 0:03:01.4]}
8... Qb6 {[%clk 0:02:45.6]} 9. Qd2 {[%clk 0:03:00.7]} 9... dxc4 {[%clk
0:02:36.8]} 10. Bxc4 {[%clk 0:03:00.1]} 10... Nd5 {[%clk 0:02:28.2]} 11. O-O
{[%clk 0:02:50.6]} 11... Be7 {[%clk 0:01:58.8]} 12. Nxg6 {[%clk 0:02:11.6]}
12... hxg6 {[%clk 0:01:39]} 13. Bxe7 {[%clk 0:01:51.5]} 13... Nxe7 {[%clk
0:01:37]} 14. Ne4 {[%clk 0:01:49.3]} 14... Nf5 {[%clk 0:01:32.7]} 15. Rfd1
{[%clk 0:01:43]} 15... O-O-O {[%clk 0:01:29.8]} 16. Ng5 {[%clk 0:01:28.6]} 16...
Nxe5 {[%clk 0:01:24.7]} 17. dxe5 {[%clk 0:00:57.6]} 17... Rxd2 {[%clk
0:01:21.3]} 18. Rxd2 {[%clk 0:00:58.5]} 18... Qb4 {[%clk 0:01:18]} 19. Rc2
{[%clk 0:00:56.2]} 19... Rh4 {[%clk 0:01:08.3]} 20. Bf1 {[%clk 0:00:42.5]} 20...
Qe7 {[%clk 0:01:04.2]} 21. Nf3 {[%clk 0:00:39.2]} 21... Nd4 {[%clk 0:01:02.5]}
22. Nxd4 {[%clk 0:00:37.8]} 22... Rxd4 {[%clk 0:01:01.7]} 23. a3 {[%clk
0:00:38.1]} 23... Qd7 {[%clk 0:01:00.6]} 24. b4 {[%clk 0:00:36.5]} 24... Rd1
{[%clk 0:00:58.8]} 25. Rcc1 {[%clk 0:00:34.5]} 25... Rxc1 {[%clk 0:00:58.2]} 26.
Rxc1 {[%clk 0:00:35.4]} 26... Qd2 {[%clk 0:00:54.9]} 27. Rc4 {[%clk 0:00:32.9]}
27... Kc7 {[%clk 0:00:52.8]} 28. a4 {[%clk 0:00:32.2]} 28... g5 {[%clk
0:00:45.3]} 29. g3 {[%clk 0:00:30.3]} 29... Qe1 {[%clk 0:00:33.9]} 30. f4 {[%clk
0:00:26.3]} 30... gxf4 {[%clk 0:00:32.5]} 31. gxf4 {[%clk 0:00:27.2]} 31... Qe3+
{[%clk 0:00:32.1]} 32. Kg2 {[%clk 0:00:27.2]} 32... g6 {[%clk 0:00:32.2]} 33. a5
{[%clk 0:00:22.5]} 33... Qd2+ {[%clk 0:00:30.6]} 34. Kg1 {[%clk 0:00:20.5]}
34... Qd5 {[%clk 0:00:29.7]} 35. Kf2 {[%clk 0:00:15.1]} 35... b6 {[%clk
0:00:28.2]} 36. axb6+ {[%clk 0:00:15]} 36... axb6 {[%clk 0:00:28.3]} 37. Be2
{[%clk 0:00:11.6]} 37... b5 {[%clk 0:00:27.6]} 38. Rc5 {[%clk 0:00:11.7]} 38...
Qd4+ {[%clk 0:00:27.4]} 39. Kf3 {[%clk 0:00:09.7]} 39... Qxb4 {[%clk 0:00:27.3]}
40. Rc2 {[%clk 0:00:10.4]} 40... c5 {[%clk 0:00:25.5]} 41. Bd3 {[%clk 0:00:09]}
41... c4 {[%clk 0:00:24.7]} 42. Be4 {[%clk 0:00:09.4]} 42... Qe1 {[%clk
0:00:23.4]} 43. Re2 {[%clk 0:00:03.6]} 43... Qh1+ {[%clk 0:00:22.3]} 44. Ke3
{[%clk 0:00:04.5]} 44... Qg1+ {[%clk 0:00:22.3]} 45. Kd2 {[%clk 0:00:03.4]}
45... Kb6 {[%clk 0:00:21.5]} 46. Kc3 {[%clk 0:00:03.1]} 46... Kc5 {[%clk
0:00:21.1]} 47. Rc2 {[%clk 0:00:03.3]} 47... Qd4# {[%clk 0:00:20.2]} 0-1

[Event "*** Titled Tuesday Blitz"]
[Site "Chess.com"]
[Date "2021.04.06"]
[Round "1"]
[White "Vandros57"]
[Black "RestartingChess"]
[Result "0-1"]
[WhiteElo "2208"]
[BlackElo "2540"]
[TimeControl "180+1"]
[EndTime "10:07:38 PDT"]
[Termination "RestartingChess won on time"]

1. d4 {[%clk 0:02:58]} 1... Nf6 {[%clk 0:03:00.5]} 2. c4 {[%clk 0:02:56.1]} 2...
g6 {[%clk 0:03:00.5]} 3. Nc3 {[%clk 0:02:55]} 3... Bg7 {[%clk 0:03:01.1]} 4. e4
{[%clk 0:02:54.6]} 4... d6 {[%clk 0:03:01.8]} 5. f3 {[%clk 0:02:54.2]} 5... O-O
{[%clk 0:03:02.3]} 6. Be3 {[%clk 0:02:53.9]} 6... e5 {[%clk 0:03:02.1]} 7. Nge2
{[%clk 0:02:52.4]} 7... exd4 {[%clk 0:03:02.3]} 8. Nxd4 {[%clk 0:02:51.6]} 8...
Nc6 {[%clk 0:03:03.2]} 9. Nxc6 {[%clk 0:02:41.5]} 9... bxc6 {[%clk 0:03:04.1]}
10. Qd2 {[%clk 0:02:40.5]} 10... Be6 {[%clk 0:03:04.3]} 11. Be2 {[%clk 0:02:37]}
11... a6 {[%clk 0:03:02.8]} 12. O-O {[%clk 0:02:34.5]} 12... Rb8 {[%clk
0:03:03.1]} 13. b3 {[%clk 0:02:30.8]} 13... Nd7 {[%clk 0:03:02]} 14. Rac1 {[%clk
0:02:28.5]} 14... f5 {[%clk 0:02:46.6]} 15. Bd4 {[%clk 0:02:23]} 15... Bxd4+
{[%clk 0:02:41.4]} 16. Qxd4 {[%clk 0:02:21.7]} 16... Qg5 {[%clk 0:02:42.2]} 17.
f4 {[%clk 0:02:12.5]} 17... Qf6 {[%clk 0:02:39.2]} 18. Qxf6 {[%clk 0:02:10.5]}
18... Nxf6 {[%clk 0:02:40]} 19. exf5 {[%clk 0:02:08.4]} 19... Bxf5 {[%clk
0:02:40.9]} 20. Bf3 {[%clk 0:02:04.4]} 20... c5 {[%clk 0:02:41.2]} 21. h3 {[%clk
0:01:59.4]} 21... h5 {[%clk 0:02:40.5]} 22. Rfe1 {[%clk 0:01:51.6]} 22... Rfe8
{[%clk 0:02:40.5]} 23. Kf2 {[%clk 0:01:47.9]} 23... Kf7 {[%clk 0:02:35.8]} 24.
Rxe8 {[%clk 0:01:43]} 24... Rxe8 {[%clk 0:02:34.8]} 25. Bc6 {[%clk 0:01:35.9]}
25... Re7 {[%clk 0:02:31.2]} 26. Re1 {[%clk 0:01:32.9]} 26... Rxe1 {[%clk
0:02:23.4]} 27. Kxe1 {[%clk 0:01:32.3]} 27... h4 {[%clk 0:02:24.1]} 28. Kf2
{[%clk 0:01:30.4]} 28... Ke6 {[%clk 0:02:16.7]} 29. Kf3 {[%clk 0:01:28.2]} 29...
Bc2 {[%clk 0:02:03]} 30. Bb7 {[%clk 0:01:20.2]} 30... a5 {[%clk 0:02:00.8]} 31.
Bc6 {[%clk 0:01:19.1]} 31... Kf5 {[%clk 0:01:29]} 32. Bb7 {[%clk 0:01:09.8]}
32... Ke6 {[%clk 0:00:58.3]} 33. Bc6 {[%clk 0:01:08.8]} 33... Ke7 {[%clk
0:00:50.8]} 34. Bb7 {[%clk 0:00:59.2]} 34... Bf5 {[%clk 0:00:44.9]} 35. Bc6
{[%clk 0:00:57]} 35... Nd7 {[%clk 0:00:45]} 36. Nd5+ {[%clk 0:00:52.8]} 36...
Kd8 {[%clk 0:00:45.3]} 37. Bxd7 {[%clk 0:00:49.2]} 37... Kxd7 {[%clk 0:00:44.1]}
38. Nc3 {[%clk 0:00:41.3]} 38... c6 {[%clk 0:00:44]} 39. Ke3 {[%clk 0:00:39.4]}
39... Ke6 {[%clk 0:00:42.9]} 40. Ne4 {[%clk 0:00:36.8]} 40... Bxe4 {[%clk
0:00:42.6]} 41. Kxe4 {[%clk 0:00:36.4]} 41... d5+ {[%clk 0:00:43.5]} 42. Ke3
{[%clk 0:00:32.9]} 42... Kf5 {[%clk 0:00:42.2]} 43. Kf3 {[%clk 0:00:32]} 43...
d4 {[%clk 0:00:42.6]} 44. a3 {[%clk 0:00:07]} 44... d3 {[%clk 0:00:39.7]} 45.
Ke3 {[%clk 0:00:06.9]} 45... d2 {[%clk 0:00:40.3]} 46. Kxd2 {[%clk 0:00:07]}
46... Kxf4 {[%clk 0:00:41.1]} 47. Ke2 {[%clk 0:00:05.6]} 47... Ke4 {[%clk
0:00:36.2]} 48. Kd2 {[%clk 0:00:05.3]} 48... Kd4 {[%clk 0:00:35.4]} 49. a4
{[%clk 0:00:04.6]} 49... g5 {[%clk 0:00:35.7]} 50. Ke2 {[%clk 0:00:02.2]} 50...
Kc3 {[%clk 0:00:36.1]} 51. Kf3 {[%clk 0:00:02]} 51... Kxb3 {[%clk 0:00:36.6]}
52. Kg4 {[%clk 0:00:02.7]} 52... Kxa4 {[%clk 0:00:37]} 53. Kxg5 {[%clk
0:00:03.6]} 53... Kb4 {[%clk 0:00:37.9]} 54. Kxh4 {[%clk 0:00:04.4]} 54... a4
{[%clk 0:00:38.8]} 55. g4 {[%clk 0:00:05]} 55... a3 {[%clk 0:00:39.7]} 56. g5
{[%clk 0:00:05.8]} 56... a2 {[%clk 0:00:40.6]} 57. g6 {[%clk 0:00:06.7]} 57...
a1=Q {[%clk 0:00:41.5]} 58. g7 {[%clk 0:00:07.6]} 58... Qxg7 {[%clk 0:00:42]}
0-1

[Event "*** Titled Tuesday Blitz"]
[Site "Chess.com"]
[Date "2021.04.06"]
[Round "1"]
[White "Orzechowski_Jacek"]
[Black "Nf3c5"]
[Result "1/2-1/2"]
[WhiteElo "2211"]
[BlackElo "2526"]
[TimeControl "180+1"]
[EndTime "10:07:38 PDT"]
[Termination "Game drawn by repetition"]

1. c4 {[%clk 0:02:57.8]} 1... e5 {[%clk 0:02:58.8]} 2. Nc3 {[%clk 0:02:55.8]}
2... Bc5 {[%clk 0:02:58.3]} 3. Nf3 {[%clk 0:02:54.6]} 3... d6 {[%clk 0:02:56.4]}
4. e3 {[%clk 0:02:54.6]} 4... a6 {[%clk 0:02:50.2]} 5. d4 {[%clk 0:02:54.1]}
5... exd4 {[%clk 0:02:46.5]} 6. exd4 {[%clk 0:02:54.5]} 6... Ba7 {[%clk
0:02:47.4]} 7. h3 {[%clk 0:02:50.5]} 7... h6 {[%clk 0:02:45]} 8. Bd3 {[%clk
0:02:49.5]} 8... Nf6 {[%clk 0:02:44.7]} 9. O-O {[%clk 0:02:47.7]} 9... O-O
{[%clk 0:02:44.7]} 10. Re1 {[%clk 0:02:45.9]} 10... Nc6 {[%clk 0:02:43.1]} 11.
Bc2 {[%clk 0:02:42.3]} 11... Re8 {[%clk 0:02:40.2]} 12. Rxe8+ {[%clk 0:02:38.8]}
12... Qxe8 {[%clk 0:02:39.7]} 13. a3 {[%clk 0:02:36.9]} 13... Ne7 {[%clk
0:02:36.7]} 14. b4 {[%clk 0:02:17.1]} 14... Bf5 {[%clk 0:02:33.7]} 15. Bb2
{[%clk 0:02:15.2]} 15... Qd7 {[%clk 0:02:30.1]} 16. Bxf5 {[%clk 0:01:43.9]}
16... Nxf5 {[%clk 0:02:27.9]} 17. Qd3 {[%clk 0:01:41.8]} 17... Re8 {[%clk
0:02:25.2]} 18. Rd1 {[%clk 0:01:40.6]} 18... Ne7 {[%clk 0:01:38.1]} 19. Re1
{[%clk 0:01:16.1]} 19... Qf5 {[%clk 0:01:29.3]} 20. Qxf5 {[%clk 0:01:03.3]}
20... Nxf5 {[%clk 0:01:30.2]} 21. Rxe8+ {[%clk 0:01:03.4]} 21... Nxe8 {[%clk
0:01:30.8]} 22. Nd5 {[%clk 0:00:59.6]} 22... c6 {[%clk 0:01:26.6]} 23. Ne3
{[%clk 0:00:59.2]} 23... Nxe3 {[%clk 0:01:18.9]} 24. fxe3 {[%clk 0:00:58.5]}
24... Nf6 {[%clk 0:01:13.9]} 25. Nd2 {[%clk 0:00:54.3]} 25... d5 {[%clk
0:01:12.2]} 26. Kf2 {[%clk 0:00:51.3]} 26... Bb8 {[%clk 0:01:11.6]} 27. c5
{[%clk 0:00:46.5]} 27... Ne4+ {[%clk 0:01:06]} 28. Ke2 {[%clk 0:00:36.9]} 28...
Nxd2 {[%clk 0:00:52.5]} 29. Kxd2 {[%clk 0:00:36.9]} 29... f5 {[%clk 0:00:53.4]}
30. Ke2 {[%clk 0:00:33]} 30... g5 {[%clk 0:00:51.6]} 31. g4 {[%clk 0:00:32.8]}
31... Kf7 {[%clk 0:00:43.2]} 32. Kf3 {[%clk 0:00:30.7]} 32... Kg6 {[%clk
0:00:41.8]} 33. Bc1 {[%clk 0:00:30.5]} 33... h5 {[%clk 0:00:39.2]} 34. Bd2
{[%clk 0:00:23]} 34... Bh2 {[%clk 0:00:37.8]} 35. Be1 {[%clk 0:00:22]} 35... Bg1
{[%clk 0:00:24.6]} 36. Bg3 {[%clk 0:00:19.2]} 36... hxg4+ {[%clk 0:00:19.9]} 37.
hxg4 {[%clk 0:00:18.7]} 37... f4 {[%clk 0:00:20.8]} 38. Bf2 {[%clk 0:00:16.6]}
38... Bxf2 {[%clk 0:00:13.9]} 39. Kxf2 {[%clk 0:00:16]} 39... fxe3+ {[%clk
0:00:13.9]} 40. Kxe3 {[%clk 0:00:16]} 40... Kf6 {[%clk 0:00:14.3]} 41. Kd3
{[%clk 0:00:15.9]} 41... Ke6 {[%clk 0:00:14.5]} 42. a4 {[%clk 0:00:16.2]} 42...
Kd7 {[%clk 0:00:14.2]} 43. a5 {[%clk 0:00:16.4]} 43... Ke6 {[%clk 0:00:14.1]}
44. Ke3 {[%clk 0:00:16.6]} 44... Kf6 {[%clk 0:00:15]} 45. Kf3 {[%clk 0:00:16.7]}
45... Ke6 {[%clk 0:00:15.9]} 46. Ke3 {[%clk 0:00:17.1]} 46... Kf6 {[%clk
0:00:16.8]} 47. Kf3 {[%clk 0:00:17.5]} 47... Ke6 {[%clk 0:00:17.7]} 48. Ke3
{[%clk 0:00:17.9]} 1/2-1/2